[Event "*** Titled Tuesday Blitz"]
[Site "Chess.com"]
[Date "2020.05.19"]
[Round "2"]
[White "LiemLe"]
[Black "Escanor89"]
[Result "1/2-1/2"]
[WhiteElo "2963"]
[BlackElo "2571"]
[TimeControl "180+1"]
[EndTime "12:19:43 PDT"]
[Termination "Game drawn - insufficient material"]

1. Nf3 {[%clk 0:03:00.9]} 1... Nf6 {[%clk 0:02:58.9]} 2. c4 {[%clk 0:03:00.5]}
2... g6 {[%clk 0:02:55.5]} 3. Nc3 {[%clk 0:03:00.2]} 3... Bg7 {[%clk 0:02:55.6]}
4. e4 {[%clk 0:03:00.2]} 4... d6 {[%clk 0:02:55.8]} 5. d4 {[%clk 0:03:00.8]}
5... O-O {[%clk 0:02:55.5]} 6. h3 {[%clk 0:03:01.4]} 6... c5 {[%clk 0:02:54.2]}
7. d5 {[%clk 0:03:01.1]} 7... e6 {[%clk 0:02:54.5]} 8. Bd3 {[%clk 0:03:01.5]}
8... exd5 {[%clk 0:02:54.6]} 9. exd5 {[%clk 0:03:02.4]} 9... Re8+ {[%clk
0:02:54.8]} 10. Be3 {[%clk 0:03:03]} 10... Rxe3+ {[%clk 0:02:54.6]} 11. fxe3
{[%clk 0:03:02.6]} 11... Qe7 {[%clk 0:02:52.5]} 12. e4 {[%clk 0:02:57.2]} 12...
Nbd7 {[%clk 0:02:51.5]} 13. O-O {[%clk 0:02:53.6]} 13... Nh5 {[%clk 0:02:49.4]}
14. Qd2 {[%clk 0:02:45.5]} 14... a6 {[%clk 0:02:48.5]} 15. g4 {[%clk 0:02:39.3]}
15... Ng3 {[%clk 0:02:44.6]} 16. Rf2 {[%clk 0:02:30]} 16... h5 {[%clk
0:02:44.4]} 17. Kg2 {[%clk 0:02:17.9]} 17... h4 {[%clk 0:02:42.3]} 18. Re1
{[%clk 0:01:30.5]} 18... Ne5 {[%clk 0:02:38.8]} 19. Nxe5 {[%clk 0:01:23.8]}
19... Bxe5 {[%clk 0:02:36.5]} 20. Ne2 {[%clk 0:01:22.5]} 20... Bd7 {[%clk
0:02:33.2]} 21. b3 {[%clk 0:01:09.8]} 21... b5 {[%clk 0:02:18.3]} 22. Rc1 {[%clk
0:01:01]} 22... Rf8 {[%clk 0:01:58.5]} 23. Ng1 {[%clk 0:00:56.1]} 23... Bd4
{[%clk 0:01:54.4]} 24. Nf3 {[%clk 0:00:56.3]} 24... Bxf2 {[%clk 0:01:45.5]} 25.
Qxf2 {[%clk 0:00:57.2]} 25... Nxe4 {[%clk 0:01:40.2]} 26. Bxe4 {[%clk
0:00:44.7]} 26... Qxe4 {[%clk 0:01:39.2]} 27. Re1 {[%clk 0:00:45.6]} 27... Qf4
{[%clk 0:01:33.5]} 28. Nxh4 {[%clk 0:00:45.8]} 28... Qxf2+ {[%clk 0:01:31.2]}
29. Kxf2 {[%clk 0:00:46.7]} 29... bxc4 {[%clk 0:01:31.4]} 30. bxc4 {[%clk
0:00:47.6]} 30... Rb8 {[%clk 0:01:23.2]} 31. Re7 {[%clk 0:00:47.5]} 31... Ba4
{[%clk 0:01:22.4]} 32. Nf3 {[%clk 0:00:45.6]} 32... Rb2+ {[%clk 0:01:20.6]} 33.
Kg3 {[%clk 0:00:45.2]} 33... Kf8 {[%clk 0:01:13.2]} 34. Ra7 {[%clk 0:00:44.2]}
34... Rxa2 {[%clk 0:01:11.6]} 35. Ng5 {[%clk 0:00:40.8]} 35... Be8 {[%clk
0:01:09.6]} 36. Ne4 {[%clk 0:00:40.8]} 36... Ba4 {[%clk 0:00:45.8]} 37. Nxd6
{[%clk 0:00:38.9]} 37... Bb3 {[%clk 0:00:46]} 38. Rxf7+ {[%clk 0:00:35]} 38...
Kg8 {[%clk 0:00:46.1]} 39. Rb7 {[%clk 0:00:34.5]} 39... Ra3 {[%clk 0:00:43.4]}
40. Kf4 {[%clk 0:00:34.2]} 40... a5 {[%clk 0:00:43.5]} 41. Kg5 {[%clk
0:00:23.9]} 41... Bc2 {[%clk 0:00:40.1]} 42. h4 {[%clk 0:00:23.9]} 42... Rf3
{[%clk 0:00:34.5]} 43. Rb5 {[%clk 0:00:17]} 43... a4 {[%clk 0:00:34.2]} 44. Rxc5
{[%clk 0:00:17.4]} 44... a3 {[%clk 0:00:34]} 45. Ra5 {[%clk 0:00:17.5]} 45...
Bb1 {[%clk 0:00:28.1]} 46. c5 {[%clk 0:00:17.9]} 46... a2 {[%clk 0:00:26.9]} 47.
c6 {[%clk 0:00:17.7]} 47... Rc3 {[%clk 0:00:26.7]} 48. Kf6 {[%clk 0:00:17.1]}
48... Rc5 {[%clk 0:00:22.1]} 49. Ra8+ {[%clk 0:00:16.2]} 49... Kh7 {[%clk
0:00:22.1]} 50. Ra7+ {[%clk 0:00:17.1]} 50... Kg8 {[%clk 0:00:21.8]} 51. Ke5
{[%clk 0:00:12]} 51... Rc1 {[%clk 0:00:15.2]} 52. Ne8 {[%clk 0:00:09.3]} 52...
Re1+ {[%clk 0:00:14.7]} 53. Kf6 {[%clk 0:00:05.6]} 53... Rxe8 {[%clk 0:00:14.2]}
54. d6 {[%clk 0:00:06.5]} 54... Rf8+ {[%clk 0:00:12.3]} 55. Ke5 {[%clk
0:00:05.2]} 55... Re8+ {[%clk 0:00:11.5]} 56. Kf6 {[%clk 0:00:05.7]} 56... Rf8+
{[%clk 0:00:11.2]} 57. Kg5 {[%clk 0:00:06.3]} 57... Be4 {[%clk 0:00:08.8]} 58.
c7 {[%clk 0:00:04.9]} 58... Bc6 {[%clk 0:00:06.7]} 59. Rxa2 {[%clk 0:00:04.8]}
59... Bd7 {[%clk 0:00:06.4]} 60. Re2 {[%clk 0:00:03.6]} 60... Rf7 {[%clk
0:00:05.5]} 61. Re7 {[%clk 0:00:03.6]} 61... Rxe7 {[%clk 0:00:04.7]} 62. dxe7
{[%clk 0:00:04.5]} 62... Kf7 {[%clk 0:00:05.2]} 63. e8=Q+ {[%clk 0:00:03.9]}
63... Kxe8 {[%clk 0:00:05.2]} 64. Kxg6 {[%clk 0:00:04.8]} 64... Bxg4 {[%clk
0:00:04.8]} 65. h5 {[%clk 0:00:04.1]} 65... Bxh5+ {[%clk 0:00:03.6]} 66. Kxh5
{[%clk 0:00:05]} 66... Kd7 {[%clk 0:00:04.1]} 67. Kg5 {[%clk 0:00:05.8]} 67...
Kxc7 {[%clk 0:00:04.2]} 1/2-1/2

[Event "*** Titled Tuesday Blitz"]
[Site "Chess.com"]
[Date "2020.05.19"]
[Round "2"]
[White "FontVella8"]
[Black "Sam_ChessMood"]
[Result "0-1"]
[WhiteElo "2548"]
[BlackElo "2883"]
[TimeControl "180+1"]
[EndTime "12:19:43 PDT"]
[Termination "Sam_ChessMood won by resignation"]

1. e4 {[%clk 0:03:00.9]} 1... c6 {[%clk 0:02:57.8]} 2. Nf3 {[%clk 0:02:54.9]}
2... d5 {[%clk 0:02:58.7]} 3. d3 {[%clk 0:02:54.9]} 3... dxe4 {[%clk 0:02:54.4]}
4. dxe4 {[%clk 0:02:54.7]} 4... Qxd1+ {[%clk 0:02:54.9]} 5. Kxd1 {[%clk
0:02:55.2]} 5... Nf6 {[%clk 0:02:43.5]} 6. Nc3 {[%clk 0:02:47.2]} 6... Bg4
{[%clk 0:02:27.3]} 7. Be2 {[%clk 0:02:37.1]} 7... Bxf3 {[%clk 0:02:23.2]} 8.
Bxf3 {[%clk 0:02:36.7]} 8... e5 {[%clk 0:02:22]} 9. Be3 {[%clk 0:02:35.3]} 9...
Nbd7 {[%clk 0:02:20.6]} 10. Ke2 {[%clk 0:02:34.4]} 10... Bc5 {[%clk 0:02:19.4]}
11. Rad1 {[%clk 0:02:30.5]} 11... Bxe3 {[%clk 0:02:17.9]} 12. Kxe3 {[%clk
0:02:30.2]} 12... Ke7 {[%clk 0:02:18.4]} 13. Rd2 {[%clk 0:02:27.8]} 13... Nc5
{[%clk 0:02:09.8]} 14. Rhd1 {[%clk 0:02:23.3]} 14... a5 {[%clk 0:02:05.2]} 15.
g3 {[%clk 0:02:18.3]} 15... Rad8 {[%clk 0:01:59.2]} 16. h4 {[%clk 0:01:55.5]}
16... b5 {[%clk 0:01:55]} 17. a3 {[%clk 0:01:47.8]} 17... h6 {[%clk 0:01:51]}
18. Bg2 {[%clk 0:01:36.6]} 18... g5 {[%clk 0:01:29.3]} 19. hxg5 {[%clk
0:01:28.7]} 19... hxg5 {[%clk 0:01:30.2]} 20. Rxd8 {[%clk 0:01:28.9]} 20... Rxd8
{[%clk 0:01:30]} 21. Rxd8 {[%clk 0:01:29.4]} 21... Kxd8 {[%clk 0:01:30.9]} 22.
f3 {[%clk 0:01:28.6]} 22... Ke7 {[%clk 0:01:28]} 23. Bf1 {[%clk 0:01:27.1]}
23... Kd6 {[%clk 0:01:22.8]} 24. b4 {[%clk 0:01:06.3]} 24... axb4 {[%clk
0:01:21.9]} 25. axb4 {[%clk 0:01:07.2]} 25... Ncd7 {[%clk 0:00:56.8]} 26. Nb1
{[%clk 0:00:52]} 26... Nh5 {[%clk 0:00:43]} 27. Kf2 {[%clk 0:00:45.3]} 27... Nb6
{[%clk 0:00:42.3]} 28. Nd2 {[%clk 0:00:43.9]} 28... Ng7 {[%clk 0:00:40.5]} 29.
Bh3 {[%clk 0:00:37]} 29... f6 {[%clk 0:00:38.7]} 30. Ke3 {[%clk 0:00:36.9]}
30... Nh5 {[%clk 0:00:37.6]} 31. Kf2 {[%clk 0:00:36.3]} 31... Ng7 {[%clk
0:00:37.7]} 32. Ke3 {[%clk 0:00:36.5]} 32... Ne8 {[%clk 0:00:37.9]} 33. Bf1
{[%clk 0:00:31.8]} 33... Nc7 {[%clk 0:00:37.1]} 34. c4 {[%clk 0:00:22.7]} 34...
bxc4 {[%clk 0:00:36.6]} 35. Nxc4+ {[%clk 0:00:23.6]} 35... Nxc4+ {[%clk
0:00:36.4]} 36. Bxc4 {[%clk 0:00:24.5]} 36... Na8 {[%clk 0:00:33.3]} 37. Bg8
{[%clk 0:00:21.2]} 37... Nb6 {[%clk 0:00:33.1]} 38. Bb3 {[%clk 0:00:20.3]} 38...
c5 {[%clk 0:00:29.6]} 39. bxc5+ {[%clk 0:00:19.9]} 39... Kxc5 {[%clk 0:00:30.5]}
40. Be6 {[%clk 0:00:19.9]} 40... Kb4 {[%clk 0:00:29.3]} 41. Kf2 {[%clk
0:00:19.4]} 41... Kc3 {[%clk 0:00:29]} 42. Kg2 {[%clk 0:00:19.8]} 42... Kd4
{[%clk 0:00:28.1]} 43. Kh3 {[%clk 0:00:19.9]} 43... Ke3 {[%clk 0:00:25.5]} 44.
Kg4 {[%clk 0:00:20.1]} 44... Na4 {[%clk 0:00:23]} 45. Bf7 {[%clk 0:00:12]} 45...
Nc5 {[%clk 0:00:20.8]} 46. Bh5 {[%clk 0:00:09.9]} 46... Ne6 {[%clk 0:00:18.2]}
47. Be8 {[%clk 0:00:06.1]} 47... Nd4 {[%clk 0:00:18.1]} 48. Bh5 {[%clk
0:00:02.6]} 48... Nxf3 {[%clk 0:00:16.5]} 49. Kf5 {[%clk 0:00:03.2]} 49... Nd2
{[%clk 0:00:16.6]} 50. Kxf6 {[%clk 0:00:02.5]} 50... Nxe4+ {[%clk 0:00:15.2]}
51. Kxe5 {[%clk 0:00:02.6]} 51... Nxg3 {[%clk 0:00:15.6]} 52. Bg4 {[%clk
0:00:03.2]} 52... Kf2 {[%clk 0:00:12.2]} 53. Kf6 {[%clk 0:00:02.2]} 53... Ne4+
{[%clk 0:00:12.5]} 54. Kf5 {[%clk 0:00:02.2]} 54... Kg3 {[%clk 0:00:12.7]} 55.
Bh5 {[%clk 0:00:01.3]} 55... Kh4 {[%clk 0:00:12.6]} 56. Kxe4 {[%clk 0:00:01.1]}
56... Kxh5 {[%clk 0:00:12.6]} 57. Kf3 {[%clk 0:00:02]} 57... Kh4 {[%clk
0:00:13.2]} 58. Kg2 {[%clk 0:00:01.7]} 58... Kg4 {[%clk 0:00:13.6]} 59. Kf2
{[%clk 0:00:02.1]} 59... Kh3 {[%clk 0:00:10.5]} 60. Kg1 {[%clk 0:00:02.1]} 60...
Kg3 {[%clk 0:00:10.1]} 61. Kf1 {[%clk 0:00:02]} 61... g4 {[%clk 0:00:08.6]} 62.
Kg1 {[%clk 0:00:01.9]} 62... Kh3 {[%clk 0:00:09]} 63. Kh1 {[%clk 0:00:02.1]}
63... g3 {[%clk 0:00:09.4]} 64. Kg1 {[%clk 0:00:01.9]} 64... g2 {[%clk
0:00:09.8]} 0-1

[Event "*** Titled Tuesday Blitz"]
[Site "Chess.com"]
[Date "2020.05.19"]
[Round "2"]
[White "sommerpower"]
[Black "Konek-Gorbunok"]
[Result "0-1"]
[WhiteElo "2450"]
[BlackElo "2289"]
[TimeControl "180+1"]
[EndTime "12:19:43 PDT"]
[Termination "Konek-Gorbunok won on time"]

1. Nf3 {[%clk 0:03:00.9]} 1... e6 {[%clk 0:02:59.7]} 2. c4 {[%clk 0:03:00]} 2...
d5 {[%clk 0:03:00.1]} 3. b3 {[%clk 0:03:00]} 3... Be7 {[%clk 0:02:59.3]} 4. Bb2
{[%clk 0:02:59.3]} 4... Bf6 {[%clk 0:02:59.6]} 5. d4 {[%clk 0:02:59.1]} 5... c6
{[%clk 0:02:59.5]} 6. e3 {[%clk 0:02:59.2]} 6... Be7 {[%clk 0:02:59.7]} 7. Nc3
{[%clk 0:02:58]} 7... f5 {[%clk 0:02:59.7]} 8. Bd3 {[%clk 0:02:54.8]} 8... Nf6
{[%clk 0:03:00.1]} 9. h3 {[%clk 0:02:54.4]} 9... O-O {[%clk 0:03:00]} 10. g4
{[%clk 0:02:51.5]} 10... Ne4 {[%clk 0:03:00.2]} 11. Qc2 {[%clk 0:02:41.2]} 11...
Bh4 {[%clk 0:02:31.9]} 12. gxf5 {[%clk 0:00:45.5]} 12... Nxf2 {[%clk 0:02:14.2]}
13. Nxh4 {[%clk 0:00:43.8]} 13... Nxd3+ {[%clk 0:02:14]} 14. Qxd3 {[%clk
0:00:42.6]} 14... Qxh4+ {[%clk 0:02:12.7]} 15. Kd2 {[%clk 0:00:41.3]} 15... Rxf5
{[%clk 0:02:03.9]} 16. Raf1 {[%clk 0:00:36.2]} 16... Na6 {[%clk 0:01:33.6]} 17.
Rxf5 {[%clk 0:00:34.5]} 17... exf5 {[%clk 0:01:32.7]} 18. Ba3 {[%clk 0:00:33]}
18... Be6 {[%clk 0:01:23.8]} 19. cxd5 {[%clk 0:00:24.7]} 19... cxd5 {[%clk
0:01:04.9]} 20. Bd6 {[%clk 0:00:19.3]} 20... Rc8 {[%clk 0:01:01.1]} 21. Be5
{[%clk 0:00:17]} 21... Qf2+ {[%clk 0:00:50]} 22. Qe2 {[%clk 0:00:16.4]} 22...
Qxe2+ {[%clk 0:00:46.2]} 23. Nxe2 {[%clk 0:00:17.3]} 23... Nb4 {[%clk
0:00:41.8]} 24. Nc3 {[%clk 0:00:17.1]} 24... g6 {[%clk 0:00:40]} 25. h4 {[%clk
0:00:16.8]} 25... Nc6 {[%clk 0:00:39.8]} 26. Bf4 {[%clk 0:00:16.5]} 26... h5
{[%clk 0:00:24.4]} 27. Nb5 {[%clk 0:00:15.6]} 27... Nb4 {[%clk 0:00:20.6]} 28.
a3 {[%clk 0:00:13]} 28... Rc2+ {[%clk 0:00:14.1]} 29. Kd1 {[%clk 0:00:12.9]}
29... Ra2 {[%clk 0:00:12.3]} 30. Rh2 {[%clk 0:00:12.5]} 30... Rxh2 {[%clk
0:00:10.9]} 31. Bxh2 {[%clk 0:00:13.4]} 31... Nc6 {[%clk 0:00:09.2]} 32. Nc7
{[%clk 0:00:08.8]} 32... Kf7 {[%clk 0:00:08.9]} 33. Bf4 {[%clk 0:00:07.9]} 33...
a6 {[%clk 0:00:08.7]} 34. Kd2 {[%clk 0:00:07.5]} 34... Ne7 {[%clk 0:00:07.5]}
35. Kc3 {[%clk 0:00:07.8]} 35... Ng8 {[%clk 0:00:07.4]} 36. Na8 {[%clk 0:00:06]}
36... Nf6 {[%clk 0:00:04.6]} 37. Kb4 {[%clk 0:00:05.7]} 37... Ne4 {[%clk
0:00:04.7]} 38. Ka5 {[%clk 0:00:05.4]} 38... Nd2 {[%clk 0:00:04.9]} 39. Kb6
{[%clk 0:00:05.3]} 39... Nxb3 {[%clk 0:00:04.7]} 40. Kxb7 {[%clk 0:00:06.2]}
40... a5 {[%clk 0:00:05.2]} 41. Nc7 {[%clk 0:00:06.1]} 41... a4 {[%clk
0:00:04.9]} 42. Kc6 {[%clk 0:00:06.3]} 42... Nd2 {[%clk 0:00:04.8]} 43. Nxd5
{[%clk 0:00:07]} 43... Nc4 {[%clk 0:00:03]} 44. Nc7 {[%clk 0:00:06.7]} 44...
Nxa3 {[%clk 0:00:02.9]} 45. d5 {[%clk 0:00:07.6]} 45... Bc8 {[%clk 0:00:01.9]}
46. d6 {[%clk 0:00:07.5]} 46... Nc4 {[%clk 0:00:02.1]} 47. d7 {[%clk 0:00:07.5]}
47... Bxd7+ {[%clk 0:00:03]} 48. Kxd7 {[%clk 0:00:07.5]} 48... a3 {[%clk
0:00:03.9]} 49. Nb5 {[%clk 0:00:03.9]} 49... a2 {[%clk 0:00:04.8]} 50. Nd6+
{[%clk 0:00:03.6]} 50... Nxd6 {[%clk 0:00:04.8]} 51. Be5 {[%clk 0:00:04]} 51...
Nc4 {[%clk 0:00:04.2]} 52. Bd4 {[%clk 0:00:04.9]} 52... Nxe3 {[%clk 0:00:03.7]}
53. Bxe3 {[%clk 0:00:04.6]} 53... a1=Q {[%clk 0:00:02.3]} 54. Bc5 {[%clk
0:00:05.5]} 54... Qh1 {[%clk 0:00:02.6]} 55. Bd6 {[%clk 0:00:04.5]} 55... Qxh4
{[%clk 0:00:03.5]} 56. Be7 {[%clk 0:00:04.4]} 56... Qg4 {[%clk 0:00:04.4]} 57.
Bd6 {[%clk 0:00:04.4]} 57... h4 {[%clk 0:00:05.3]} 58. Bc7 {[%clk 0:00:04.1]}
58... h3 {[%clk 0:00:06.2]} 0-1

[Event "*** Titled Tuesday Blitz"]
[Site "Chess.com"]
[Date "2020.05.19"]
[Round "2"]
[White "karwowskikacper"]
[Black "szefru"]
[Result "0-1"]
[WhiteElo "2393"]
[BlackElo "2155"]
[TimeControl "180+1"]
[EndTime "12:19:44 PDT"]
[Termination "szefru won by resignation"]

1. e4 {[%clk 0:03:00.9]} 1... Nf6 {[%clk 0:02:59.6]} 2. e5 {[%clk 0:03:00.6]}
2... Nd5 {[%clk 0:02:59.6]} 3. d4 {[%clk 0:03:01.2]} 3... d6 {[%clk 0:02:59.9]}
4. Nf3 {[%clk 0:03:00.6]} 4... g6 {[%clk 0:02:59.8]} 5. Be2 {[%clk 0:02:58.5]}
5... Bg7 {[%clk 0:03:00]} 6. O-O {[%clk 0:02:59.1]} 6... O-O {[%clk 0:02:59.5]}
7. Re1 {[%clk 0:02:55.6]} 7... Nb6 {[%clk 0:02:55]} 8. Bf4 {[%clk 0:02:52.8]}
8... Nc6 {[%clk 0:02:52.4]} 9. exd6 {[%clk 0:02:51.1]} 9... cxd6 {[%clk
0:02:52.4]} 10. c3 {[%clk 0:02:52]} 10... e5 {[%clk 0:02:50.5]} 11. dxe5 {[%clk
0:02:52]} 11... dxe5 {[%clk 0:02:51.4]} 12. Bg5 {[%clk 0:02:49.2]} 12... Qxd1
{[%clk 0:02:30.5]} 13. Bxd1 {[%clk 0:02:50.1]} 13... Nc4 {[%clk 0:02:08.2]} 14.
b3 {[%clk 0:02:43]} 14... Nd6 {[%clk 0:02:03.3]} 15. Na3 {[%clk 0:02:34.8]}
15... h6 {[%clk 0:01:54.9]} 16. Be3 {[%clk 0:02:34.6]} 16... Ne4 {[%clk
0:01:37.1]} 17. Rc1 {[%clk 0:02:31.4]} 17... f5 {[%clk 0:01:34.9]} 18. Nd2
{[%clk 0:02:18.2]} 18... Nxd2 {[%clk 0:01:30.7]} 19. Bxd2 {[%clk 0:02:19.1]}
19... Rd8 {[%clk 0:01:30.8]} 20. Rc2 {[%clk 0:01:47.2]} 20... f4 {[%clk
0:01:09.2]} 21. Bf3 {[%clk 0:01:46.2]} 21... Bf5 {[%clk 0:01:08.7]} 22. Be4
{[%clk 0:01:42.1]} 22... Bxe4 {[%clk 0:01:08.7]} 23. Rxe4 {[%clk 0:01:43]} 23...
Rd3 {[%clk 0:01:09.2]} 24. f3 {[%clk 0:01:37.2]} 24... Rad8 {[%clk 0:01:09.1]}
25. Be1 {[%clk 0:01:37.4]} 25... Rd1 {[%clk 0:01:08.2]} 26. Kf1 {[%clk
0:01:18.2]} 26... a6 {[%clk 0:01:07.5]} 27. Ree2 {[%clk 0:01:13.4]} 27... Ne7
{[%clk 0:01:05.6]} 28. Rcd2 {[%clk 0:01:12.1]} 28... R8xd2 {[%clk 0:01:04.6]}
29. Rxd2 {[%clk 0:01:13]} 29... Rxd2 {[%clk 0:01:01.5]} 30. Bxd2 {[%clk
0:01:13.9]} 30... Nd5 {[%clk 0:00:59.3]} 31. c4 {[%clk 0:01:01.7]} 31... Ne7
{[%clk 0:00:55]} 32. Ke2 {[%clk 0:01:01.4]} 32... Kf7 {[%clk 0:00:54.9]} 33. Kd3
{[%clk 0:01:01.4]} 33... Ke6 {[%clk 0:00:55.2]} 34. Nb1 {[%clk 0:01:02]} 34...
Nf5 {[%clk 0:00:55.2]} 35. Nc3 {[%clk 0:01:00.7]} 35... Nd6 {[%clk 0:00:54.8]}
36. c5 {[%clk 0:00:55.2]} 36... Nf5 {[%clk 0:00:53.7]} 37. Kc4 {[%clk
0:00:49.5]} 37... Nh4 {[%clk 0:00:50.3]} 38. b4 {[%clk 0:00:28.3]} 38... Nxg2
{[%clk 0:00:43.7]} 39. Kd3 {[%clk 0:00:24.3]} 39... Nh4 {[%clk 0:00:42.7]} 40.
Ke4 {[%clk 0:00:24.7]} 40... g5 {[%clk 0:00:40]} 41. a4 {[%clk 0:00:21.9]} 41...
Nf5 {[%clk 0:00:39]} 42. b5 {[%clk 0:00:19.1]} 42... axb5 {[%clk 0:00:38.4]} 43.
axb5 {[%clk 0:00:20]} 43... Nd4 {[%clk 0:00:37.6]} 44. Be1 {[%clk 0:00:20.4]}
44... Bf8 {[%clk 0:00:36.1]} 45. Bf2 {[%clk 0:00:19.3]} 45... Bxc5 {[%clk
0:00:35.6]} 46. Bxd4 {[%clk 0:00:19.7]} 46... Bxd4 {[%clk 0:00:35.3]} 47. Nd5
{[%clk 0:00:08.5]} 47... h5 {[%clk 0:00:33.5]} 48. h3 {[%clk 0:00:08.7]} 48...
g4 {[%clk 0:00:19.9]} 49. hxg4 {[%clk 0:00:08.2]} 49... hxg4 {[%clk 0:00:20]}
50. fxg4 {[%clk 0:00:08.8]} 50... f3 {[%clk 0:00:19.6]} 51. Nc7+ {[%clk
0:00:04.6]} 51... Kd7 {[%clk 0:00:18.8]} 52. Kxf3 {[%clk 0:00:04.9]} 52... Kxc7
{[%clk 0:00:18.6]} 53. Ke4 {[%clk 0:00:05.8]} 53... Kb6 {[%clk 0:00:17.7]} 54.
g5 {[%clk 0:00:06.3]} 54... Bc5 {[%clk 0:00:14.1]} 55. Kxe5 {[%clk 0:00:06.2]}
55... Kxb5 {[%clk 0:00:13.1]} 56. g6 {[%clk 0:00:05.2]} 56... Ba3 {[%clk
0:00:13.3]} 57. Ke4 {[%clk 0:00:02]} 57... Bb2 {[%clk 0:00:13.8]} 58. Kd3 {[%clk
0:00:02.7]} 58... Ka4 {[%clk 0:00:14.1]} 59. Kc2 {[%clk 0:00:03.6]} 59... Bg7
{[%clk 0:00:14.6]} 60. Kb1 {[%clk 0:00:03.7]} 60... b5 {[%clk 0:00:15.3]} 61.
Ka2 {[%clk 0:00:04.5]} 61... Kb4 {[%clk 0:00:15.1]} 62. Kb1 {[%clk 0:00:05.4]}
62... Kb3 {[%clk 0:00:15.4]} 63. Kc1 {[%clk 0:00:05.6]} 63... Ka2 {[%clk
0:00:15.7]} 0-1

[Event "*** Titled Tuesday Blitz"]
[Site "Chess.com"]
[Date "2020.05.19"]
[Round "2"]
[White "Papa12341234"]
[Black "Manukyan_Artak"]
[Result "1-0"]
[WhiteElo "2554"]
[BlackElo "2295"]
[TimeControl "180+1"]
[EndTime "12:19:47 PDT"]
[Termination "Papa12341234 won on time"]

1. e4 {[%clk 0:03:00.9]} 1... c6 {[%clk 0:02:59.9]} 2. d4 {[%clk 0:03:00.5]}
2... d5 {[%clk 0:03:00.8]} 3. Nc3 {[%clk 0:03:01]} 3... dxe4 {[%clk 0:03:00.8]}
4. Nxe4 {[%clk 0:03:01.9]} 4... Nf6 {[%clk 0:03:01.6]} 5. Ng3 {[%clk 0:03:02.3]}
5... Bg4 {[%clk 0:03:00.8]} 6. Nf3 {[%clk 0:03:01.9]} 6... e6 {[%clk 0:03:00.6]}
7. Be2 {[%clk 0:03:02.2]} 7... Bd6 {[%clk 0:03:00]} 8. Be3 {[%clk 0:03:02.4]}
8... Nbd7 {[%clk 0:02:57.5]} 9. h3 {[%clk 0:03:02.7]} 9... Bxf3 {[%clk
0:02:54.1]} 10. Bxf3 {[%clk 0:03:03.6]} 10... Bxg3 {[%clk 0:02:45.2]} 11. fxg3
{[%clk 0:03:03.3]} 11... Nd5 {[%clk 0:02:44.1]} 12. Bf2 {[%clk 0:02:58.9]} 12...
b5 {[%clk 0:02:37]} 13. O-O {[%clk 0:02:58]} 13... O-O {[%clk 0:02:34.1]} 14. c3
{[%clk 0:02:57.7]} 14... a5 {[%clk 0:02:33.3]} 15. Qd2 {[%clk 0:02:57.1]} 15...
a4 {[%clk 0:02:32.7]} 16. b3 {[%clk 0:02:57.7]} 16... axb3 {[%clk 0:02:32.3]}
17. axb3 {[%clk 0:02:58.6]} 17... Rxa1 {[%clk 0:02:28.9]} 18. Rxa1 {[%clk
0:02:59.5]} 18... Qb6 {[%clk 0:02:25.4]} 19. c4 {[%clk 0:02:58.9]} 19... bxc4
{[%clk 0:02:20.3]} 20. bxc4 {[%clk 0:02:59.8]} 20... Qb4 {[%clk 0:02:18.2]} 21.
Qxb4 {[%clk 0:02:52]} 21... Nxb4 {[%clk 0:02:18]} 22. Rb1 {[%clk 0:02:51.8]}
22... Nd3 {[%clk 0:02:09.2]} 23. Bxc6 {[%clk 0:02:49]} 23... Nxf2 {[%clk
0:02:08]} 24. Bxd7 {[%clk 0:02:46]} 24... Ne4 {[%clk 0:02:07.4]} 25. c5 {[%clk
0:02:41.8]} 25... Nc3 {[%clk 0:02:03.8]} 26. Rb7 {[%clk 0:02:38.4]} 26... Ne2+
{[%clk 0:01:58.4]} 27. Kf2 {[%clk 0:02:37]} 27... Nxd4 {[%clk 0:01:59.3]} 28. c6
{[%clk 0:02:37.3]} 28... Nxc6 {[%clk 0:01:54.9]} 29. Bxc6 {[%clk 0:02:38.2]}
29... g5 {[%clk 0:01:51.7]} 30. Kf3 {[%clk 0:02:37.9]} 30... Kg7 {[%clk
0:01:51.8]} 31. Ba4 {[%clk 0:02:36.8]} 31... Kf6 {[%clk 0:01:51.9]} 32. Kg4
{[%clk 0:02:35]} 32... h6 {[%clk 0:01:51.7]} 33. Bb3 {[%clk 0:02:32.8]} 33...
Rc8 {[%clk 0:01:49.7]} 34. h4 {[%clk 0:02:30.2]} 34... Rc5 {[%clk 0:01:48.5]}
35. Rb8 {[%clk 0:02:26]} 35... Kg7 {[%clk 0:01:38.9]} 36. Rb4 {[%clk 0:02:01.6]}
36... Kf6 {[%clk 0:01:36.3]} 37. Re4 {[%clk 0:01:54.3]} 37... Kg7 {[%clk
0:01:29.1]} 38. Re3 {[%clk 0:01:54.4]} 38... Rb5 {[%clk 0:01:26.7]} 39. hxg5
{[%clk 0:01:42.2]} 39... hxg5 {[%clk 0:01:24.6]} 40. Kf3 {[%clk 0:01:42.1]}
40... Rb4 {[%clk 0:01:21.2]} 41. Bc2 {[%clk 0:01:39.2]} 41... g4+ {[%clk
0:01:13]} 42. Kf2 {[%clk 0:01:38.6]} 42... Rb2 {[%clk 0:01:13.1]} 43. Rc3 {[%clk
0:01:38.2]} 43... f5 {[%clk 0:01:08.8]} 44. Ke3 {[%clk 0:01:38.1]} 44... Kf6
{[%clk 0:01:08.9]} 45. Rc6 {[%clk 0:01:38]} 45... Rb4 {[%clk 0:01:05.7]} 46. Bd3
{[%clk 0:01:35.9]} 46... Rb3 {[%clk 0:00:42.2]} 47. Kd2 {[%clk 0:01:21.7]} 47...
Rb2+ {[%clk 0:00:38]} 48. Bc2 {[%clk 0:01:22]} 48... Ke5 {[%clk 0:00:32.4]} 49.
Kc3 {[%clk 0:01:13.8]} 49... Rb7 {[%clk 0:00:25]} 50. Bb3 {[%clk 0:01:13]} 50...
Re7 {[%clk 0:00:24.8]} 51. Kd3 {[%clk 0:01:12.3]} 51... f4 {[%clk 0:00:15]} 52.
Rc5+ {[%clk 0:01:10.4]} 52... Kd6 {[%clk 0:00:14.3]} 53. Rg5 {[%clk 0:01:10.8]}
53... f3 {[%clk 0:00:09.9]} 54. gxf3 {[%clk 0:01:08.8]} 54... gxf3 {[%clk
0:00:10.8]} 55. Ke3 {[%clk 0:01:09.3]} 55... Rf7 {[%clk 0:00:10.9]} 56. Kf2
{[%clk 0:01:06.9]} 56... Rb7 {[%clk 0:00:10.7]} 57. Bd1 {[%clk 0:01:07]} 57...
Rb2+ {[%clk 0:00:10.3]} 58. Kxf3 {[%clk 0:01:07.3]} 58... e5 {[%clk 0:00:11.2]}
59. Be2 {[%clk 0:01:04.6]} 59... Kd5 {[%clk 0:00:10.9]} 60. Ke3 {[%clk
0:01:03.2]} 60... Rb3+ {[%clk 0:00:09.3]} 61. Kf2 {[%clk 0:01:03.4]} 61... Kd4
{[%clk 0:00:08.7]} 62. Rg8 {[%clk 0:01:01.4]} 62... Rb2 {[%clk 0:00:07]} 63.
Rd8+ {[%clk 0:01:01.6]} 63... Ke4 {[%clk 0:00:07.2]} 64. Ra8 {[%clk 0:01:00.8]}
64... Rc2 {[%clk 0:00:06.4]} 65. Ra4+ {[%clk 0:01:00.1]} 65... Kf5 {[%clk
0:00:06.6]} 66. Ra3 {[%clk 0:00:54.6]} 66... Rb2 {[%clk 0:00:05.3]} 67. Ra5
{[%clk 0:00:50.4]} 67... Ke4 {[%clk 0:00:04.8]} 68. Ra4+ {[%clk 0:00:48.8]}
68... Kf5 {[%clk 0:00:04.8]} 69. Ke3 {[%clk 0:00:46.4]} 69... Rb3+ {[%clk
0:00:04.5]} 70. Bd3+ {[%clk 0:00:46.5]} 70... Kg5 {[%clk 0:00:03.3]} 71. Re4
{[%clk 0:00:44.5]} 71... Kf6 {[%clk 0:00:03.3]} 72. Rg4 {[%clk 0:00:41.6]} 1-0